bitfinex-derivatives/quotes_ETHF0:USTF0_20250323
["timestamp","ask_amount","ask_price","bid_price","bid_amount"]
[1742720618509,2.757,2013.9,2013.8,0.99332]
[1742720618906,2.757,2013.9,2013.8,43.5774028]
[1742720619106,2.757,2013.9,2013.8,43.57740638]
[1742720620614,2.757,2013.9,2013.8,43.57732666]
[1742720621007,2.757,2013.9,2013.8,43.57732853]
[1742720622419,2.757,2013.9,2013.8,43.57725885]
[1742720624315,2.757,2013.9,2013.8,43.05532]
[1742720625313,3.75027,2013.9,2013.8,41.79332]
[1742720625509,2.757,2013.9,2013.8,41.79332]
[1742720625906,3.75027,2013.9,2013.8,41.79332]
[1742720626315,2.757,2013.9,2013.8,41.79332]
[1742720629121,3.75027,2013.9,2013.8,41.79332]
[1742720631319,2.757,2013.9,2013.8,41.79332]
[1742720632111,2.757,2013.9,2013.8,42.31632402]
[1742720632622,2.757,2013.9,2013.8,42.31649238]
[1742720636623,2.757,2013.9,2013.8,42.31704826]
[1742720638723,2.757,2013.9,2013.8,42.31705277]
[1742720639025,2.757,2013.9,2013.8,42.31704498]
[1742720640522,2.757,2013.9,2013.8,41.79332]
[1742720640523,0.7127,2013.9,2013.8,41.79332]
[1742720640719,0.7127,2013.9,2013.8,42.31703451]
[1742720641522,0.7127,2013.9,2013.8,45.48903451]
[1742720643827,0.7127,2013.9,2013.8,44.96532]
[1742720644028,0.7127,2013.9,2013.8,45.48905026]
[1742720645929,0.7127,2013.9,2013.8,45.48913162]
[1742720646622,0.7127,2013.9,2013.8,45.4892241]
[1742720647133,0.7127,2013.9,2013.8,44.96532]
[1742720651433,0.7127,2013.9,2013.8,45.48926247]
[1742720651631,0.7127,2013.9,2013.8,44.96532]
[1742720652332,0.7127,2013.9,2013.8,45.48929576]
[1742720655736,0.7127,2013.9,2013.8,46.12444543]
[1742720655934,0.7127,2013.9,2013.8,45.60046967]
[1742720656135,0.7127,2013.9,2013.8,46.12439189]
[1742720657940,0.7127,2013.9,2013.8,46.12428463]
[1742720660040,0.7127,2013.9,2013.8,46.12426499]
[1742720661640,0.7127,2013.9,2013.8,42.95226499]
[1742720662038,0.7127,2013.9,2013.8,42.95231186]
[1742720662238,2.0071,2013.9,2013.8,42.31716219]
[1742720665946,2.0071,2013.9,2013.6,3.2078]
[1742720666149,3.67032,2013.8,2013.6,4.5891]
[1742720666449,1.3428,2013.7,2013.6,5.58251]
[1742720666947,2.33617,2013.7,2013.6,45.3891]
[1742720667148,2.33617,2013.7,2013.6,44.0078]
[1742720668541,2.33617,2013.7,2013.6,3.2078]
[1742720668740,2.33617,2013.7,2013.6,2.161]
[1742720669734,3.04757,2013.7,2013.6,2.161]
[1742720672459,0.99342,2013.6,2013.5,2.26312564]
[1742720672659,2.29402,2013.6,2013.5,2.26312564]
[1742720674563,5.46502,2013.6,2013.5,1.26965564]
[1742720675062,5.46502,2013.6,2013.5,0.00745564]
[1742720675466,5.46502,2013.6,2013.5,1.36995564]
[1742720683467,0.99357,2013.3,2013.2,0.99358]
[1742720683962,0.99357,2013.3,2013.2,41.79358]
[1742720684969,2.28827,2013.3,2013.2,43.16658]
[1742720687962,2.28827,2013.3,2013.2,42.173]
[1742720688171,2.28827,2013.3,2013.2,43.16662]
[1742720688573,0.99357,2013.3,2013.2,43.16662]
[1742720688963,0.99357,2013.3,2013.2,43.82212]
[1742720690772,4.5666,2013.4,2013.2,43.82212]
[1742720690972,4.5666,2013.4,2013.3,2.0527]
[1742720691172,5.56012,2013.4,2013.3,2.0527]
[1742720693873,5.56012,2013.4,2013.3,1.3911]
[1742720702179,0.99367,2013.1,2013.0,0.00745564]
[1742720702481,4.16467,2013.1,2013.0,0.00745564]
[1742720702686,4.16467,2013.1,2013.0,1.34055564]
[1742720703180,5.50727,2013.1,2013.0,1.34055564]
[1742720704371,4.5136,2013.1,2013.0,2.33427564]
[1742720704572,5.50727,2013.1,2013.0,2.33427564]
[1742720704773,1.3502,2013.2,2013.1,0.99367]
[1742720705076,6.85842,2013.2,2013.1,1.3331]
[1742720706985,6.85842,2013.2,2013.1,2.32677]
[1742720707176,6.85842,2013.2,2013.1,1.3331]
[1742720709885,6.93412,2013.2,2013.1,1.3331]
[1742720725901,3.76212,2013.2,2013.1,2.32677]
[1742720726201,6.25632,2013.2,2013.1,2.32677]
[1742720728098,6.25632,2013.2,2013.1,1.3331]
[1742720732195,6.96672,2013.2,2013.1,1.3331]
[1742720736297,0.99367,2013.1,2013.0,0.00745564]
[1742720736507,2.35397,2013.1,2013.0,1.28935564]
[1742720739308,2.42987,2013.1,2013.0,1.28935564]
[1742720750425,3.10027,2013.1,2013.0,1.28935564]
[1742720753321,0.99372,2013.0,2012.9,3.2078]
[1742720753518,5.44832,2013.0,2012.9,3.2078]
[1742720755027,0.99377,2012.9,2012.8,1.3534]
[1742720755224,3.62787,2012.9,2012.8,1.3534]
[1742720756523,4.33787,2012.9,2012.8,1.3534]
[1742720758727,4.41387,2012.9,2012.8,1.3534]
[1742720759830,0.99391,2012.6,2012.5,0.6338]
[1742720760027,0.99391,2012.6,2012.5,1.15770559]
[1742720760226,0.99391,2012.6,2012.5,41.95770559]
[1742720760426,2.28851,2012.6,2012.5,41.95770559]
[1742720760633,2.28851,2012.6,2012.5,41.4338]
[1742720760834,2.28851,2012.6,2012.5,41.95771748]
[1742720761927,2.93301,2012.6,2012.5,0.6338]
[1742720763237,2.93301,2012.6,2012.5,1.896]
[1742720775445,3.64271,2012.6,2012.5,1.896]
[1742720776147,3.64271,2012.6,2012.5,1.2622]
[1742720782349,0.99401,2012.4,2012.3,41.4348]
[1742720782543,4.16501,2012.4,2012.3,1.3923]
[1742720783049,5.48001,2012.4,2012.3,1.3923]
[1742720783243,8.68781,2012.4,2012.3,1.3923]
[1742720786252,3.171,2012.4,2012.3,2.38634]
[1742720787352,3.171,2012.4,2012.3,2.90996199]
[1742720788351,3.171,2012.4,2012.3,2.91012649]
[1742720788850,3.171,2012.4,2012.3,2.91014725]
[1742720790253,3.2471,2012.4,2012.3,2.38634]
[1742720790452,3.2471,2012.4,2012.3,2.91024034]
[1742720792451,4.24111,2012.4,2012.3,2.9102777]
[1742720792858,3.2471,2012.4,2012.3,2.9102777]
[1742720794454,3.2471,2012.4,2012.3,2.91031331]
[1742720795954,4.6296,2012.4,2012.3,2.91031331]
[1742720796158,3.2471,2012.4,2012.3,2.91031331]
[1742720796544,3.2471,2012.4,2012.3,2.91033697]
[1742720797358,4.24111,2012.4,2012.3,2.91033697]
[1742720797552,5.50241,2012.4,2012.3,2.91033697]
[1742720798457,5.50241,2012.4,2012.3,2.91034367]
[1742720798759,4.5084,2012.4,2012.3,2.91034367]
[1742720798955,5.50241,2012.4,2012.3,2.91034367]
[1742720799650,5.50241,2012.4,2012.3,2.91035902]
[1742720800458,4.5084,2012.4,2012.3,2.91035902]
[1742720800759,4.5084,2012.4,2012.3,2.91035919]
[1742720801059,5.50241,2012.4,2012.3,2.91035919]
[1742720802556,4.5084,2012.4,2012.3,2.91035919]
[1742720802954,3.2471,2012.4,2012.3,2.91035919]
[1742720804556,0.0761,2012.4,2012.3,2.91035919]
[1742720804760,0.0761,2012.4,2012.3,2.91025182]
[1742720806665,0.0761,2012.4,2012.3,3.54627504]
[1742720810460,1.4041,2012.4,2012.3,3.54627504]
[1742720810769,1.4041,2012.4,2012.3,2.90992587]
[1742720814771,1.4041,2012.4,2012.3,3.54609754]
[1742720815270,1.4041,2012.4,2012.3,6.75389754]
[1742720816866,1.4041,2012.4,2012.3,6.75404141]
[1742720817666,1.4041,2012.4,2012.3,3.54624141]
[1742720817868,1.4041,2012.4,2012.3,6.75404141]
[1742720819071,1.4041,2012.4,2012.3,6.75405519]
[1742720820076,0.0761,2012.4,2012.3,6.75405519]
[1742720820275,0.7097,2012.6,2012.5,0.99396]
[1742720820475,0.7097,2012.6,2012.5,4.68784497]
[1742720820661,0.7097,2012.6,2012.5,4.16396]
[1742720820867,0.7097,2012.6,2012.5,6.69132198]
[1742720821268,0.7097,2012.6,2012.5,6.69761648]
[1742720821767,0.7097,2012.6,2012.5,6.06142198]
[1742720821974,1.3919,2012.6,2012.5,6.06142198]
[1742720822170,1.3919,2012.6,2012.5,6.06137541]
[1742720822370,0.7097,2012.6,2012.5,6.06137541]
[1742720822767,0.7097,2012.6,2012.5,6.06134101]
[1742720824077,2.051,2012.6,2012.5,6.06134101]
[1742720825180,0.7097,2012.6,2012.5,6.06134101]
[1742720825774,0.7097,2012.6,2012.5,6.69732954]
[1742720827780,1.9834,2012.6,2012.5,6.69732954]
[1742720828183,1.9834,2012.6,2012.5,6.69717557]
[1742720828677,1.9834,2012.6,2012.5,6.69716381]
[1742720832185,1.9834,2012.6,2012.5,6.17354853]
[1742720832389,1.9834,2012.6,2012.5,6.69721127]
[1742720833090,1.9834,2012.6,2012.5,6.69725838]
[1742720833587,2.6795,2012.6,2012.5,6.69725838]
[1742720834182,2.6795,2012.6,2012.5,6.06126985]
[1742720834688,2.6795,2012.6,2012.5,6.06130731]
[1742720837597,2.6795,2012.6,2012.5,6.69742363]
[1742720838499,2.6795,2012.6,2012.5,6.69748364]
[1742720838803,2.6795,2012.6,2012.5,6.06136732]
[1742720840307,2.6795,2012.6,2012.5,6.06138678]
[1742720840496,2.6795,2012.6,2012.5,9.26918678]
[1742720840799,2.6795,2012.6,2012.5,4.72558678]
[1742720841004,3.67341,2012.6,2012.5,3.73162678]
[1742720841201,3.67341,2012.6,2012.5,0.52382678]
[1742720841394,3.67341,2012.6,2012.4,0.99397]
[1742720841590,1.3698,2012.5,2012.4,0.99397]
[1742720841792,1.3698,2012.5,2012.4,1.51785844]
[1742720844201,1.3698,2012.5,2012.4,0.99397]
[1742720844403,1.3698,2012.5,2012.4,1.51769357]
[1742720844794,2.36376,2012.5,2012.4,0.52372357]
[1742720845402,3.07216,2012.5,2012.4,0.52372357]
[1742720845710,2.0782,2012.5,2012.4,1.51773357]
[1742720845906,2.0782,2012.5,2012.4,2.78663357]
[1742720846308,0.7084,2012.5,2012.4,2.78655496]
[1742720846713,0.7084,2012.5,2012.4,3.42243716]
[1742720848313,0.7084,2012.5,2012.4,3.42242518]
[1742720848815,0.7084,2012.5,2012.4,3.42242098]
[1742720849406,0.7084,2012.5,2012.4,4.09734491]
[1742720851712,1.9867,2012.7,2012.6,0.99391]
[1742720851917,0.67345564,2012.8,2012.7,0.99386]
[1742720851918,0.00745564,2012.8,2012.7,0.99386]
[1742720852107,0.00745564,2012.8,2012.7,2.88628878]
[1742720852717,0.00745564,2012.8,2012.7,3.52217098]
[1742720853415,0.00745564,2012.8,2012.7,44.32217098]
[1742720856412,0.00745564,2012.8,2012.7,44.32166365]
[1742720856820,0.00745564,2012.8,2012.7,44.32166487]
[1742720857220,0.00745564,2012.8,2012.7,47.52946487]
[1742720858520,0.00745564,2012.8,2012.7,47.52936307]
[1742720858820,0.00745564,2012.8,2012.7,46.89348087]
[1742720859916,0.00745564,2012.8,2012.7,47.52854301]
[1742720860221,0.00745564,2012.8,2012.7,46.89343241]
[1742720862921,0.00745564,2012.8,2012.7,46.89332033]
[1742720864526,0.00745564,2012.8,2012.7,46.89326151]
[1742720866526,0.00745564,2012.8,2012.7,46.89323383]
[1742720869327,0.00745564,2012.8,2012.7,45.52443383]
[1742720869528,0.67245564,2012.8,2012.7,45.00166]
[1742720869717,1.30065564,2012.8,2012.7,45.00166]
[1742720869922,2.63615564,2012.8,2012.7,45.00166]
[1742720870829,3.62996564,2012.8,2012.7,45.00166]
[1742720871226,2.63615564,2012.8,2012.7,45.00166]
[1742720872523,3.62996564,2012.8,2012.7,45.00166]
[1742720872832,2.63615564,2012.8,2012.7,45.00166]
[1742720874325,3.62996564,2012.8,2012.7,45.00166]
[1742720876231,3.62996564,2012.8,2012.7,45.52519341]
[1742720876731,3.62996564,2012.8,2012.7,45.52519338]
[1742720876934,3.62996564,2012.8,2012.7,42.31739338]
[1742720878533,3.62996564,2012.8,2012.7,42.3174006]
[1742720879733,3.62996564,2012.8,2012.7,41.79386]
[1742720880133,3.62996564,2012.8,2012.7,43.11346]
[1742720880333,2.63615564,2012.8,2012.7,43.11346]
[1742720881634,3.62996564,2012.8,2012.7,43.11346]
[1742720883629,3.62996564,2012.8,2012.7,41.79386]
[1742720884932,2.63615564,2012.8,2012.7,43.12596]
[1742720887235,2.63615564,2012.8,2012.7,43.64944575]
[1742720888230,2.63615564,2012.8,2012.7,43.64946519]
[1742720889236,2.63615564,2012.8,2012.7,42.65560519]
[1742720889737,3.62996564,2012.8,2012.7,42.65560519]
[1742720890034,3.62996564,2012.8,2012.7,42.65565707]
[1742720890834,3.62996564,2012.8,2012.7,45.86345707]
[1742720892029,3.62996564,2012.8,2012.7,45.3399]
[1742720892226,3.62996564,2012.8,2012.7,45.86353062]
[1742720892732,3.62996564,2012.8,2012.7,46.85739062]
[1742720894041,3.62996564,2012.8,2012.7,46.33376]
[1742720894239,3.62996564,2012.8,2012.7,46.85749739]
[1742720894439,3.62996564,2012.8,2012.7,5.06363739]
[1742720894636,3.62996564,2012.8,2012.7,1.85592021]
[1742720894941,3.62996564,2012.8,2012.7,1.3321]
[1742720903646,2.00795564,2012.8,2012.7,2.85007123]
[1742720903839,2.00795564,2012.8,2012.7,6.05787123]
[1742720903840,0.00745564,2012.8,2012.7,6.05787123]
[1742720904345,0.00745564,2012.8,2012.7,6.05783399]
[1742720906243,0.00745564,2012.8,2012.7,6.05775727]
[1742720908245,0.00745564,2012.8,2012.7,6.05770353]
[1742720910348,0.00745564,2012.8,2012.7,6.05767998]
[1742720912347,0.00745564,2012.8,2012.7,6.05766455]
[1742720913851,0.00745564,2012.8,2012.7,2.84986455]
[1742720914055,0.00745564,2012.8,2012.7,6.05766455]
[1742720914257,0.00745564,2012.8,2012.7,6.05765171]
[1742720918265,0.00745564,2012.8,2012.7,9.22353008]
[1742720918466,0.00745564,2012.8,2012.7,9.8597019]
[1742720918765,0.00745564,2012.8,2012.7,9.85969591]
[1742720919962,0.00745564,2012.8,2012.7,9.85961956]
[1742720920359,0.00745564,2012.8,2012.7,9.33593182]
[1742720920666,0.00745564,2012.8,2012.7,9.85955394]
[1742720924469,0.00745564,2012.8,2012.7,9.85927795]
[1742720924961,3.2078,2013.9,2012.7,12.039963]
[1742720925168,1.3041,2013.5,2013.4,4.20132]
[1742720926874,1.313,2013.6,2013.5,0.99347]
[1742720927073,1.313,2013.6,2013.5,2.26677]
[1742720927268,0.6345,2013.6,2013.5,2.78945922]
[1742720927468,0.6345,2013.6,2013.5,2.26677]
[1742720927969,0.6345,2013.6,2013.5,2.78945317]
[1742720928177,0.6345,2013.6,2013.5,2.94687]
[1742720928676,2.0252,2013.6,2013.5,2.94687]
[1742720929469,2.0252,2013.6,2013.5,6.15467]
[1742720931081,0.6345,2013.6,2013.5,6.15467]
[1742720931882,0.6345,2013.6,2013.5,6.67669099]
[1742720932470,0.6345,2013.6,2013.5,47.47657788]
[1742720933076,0.6345,2013.6,2013.5,46.95467]
[1742720933370,0.6345,2013.6,2013.5,47.33201839]
[1742720933573,1.9314,2013.6,2013.5,47.33201839]
[1742720936778,0.67145564,2013.7,2013.6,0.99342]
[1742720936983,0.67145564,2013.7,2013.6,2.37252]
[1742720938884,1.66482564,2013.7,2013.6,0.99342]
[1742720939088,2.92962564,2013.7,2013.6,0.99342]
[1742720940179,2.92962564,2013.7,2013.5,45.00122]
[1742720940380,2.0225,2013.6,2013.5,45.00122]
[1742720944584,2.0225,2013.6,2013.5,45.65872]
[1742720947093,2.0225,2013.6,2013.5,46.18095861]
[1742720949589,0.67145564,2013.7,2013.6,0.99342]
[1742720949794,0.67145564,2013.7,2013.6,2.80475861]
[1742720950094,0.67145564,2013.7,2013.6,2.80499234]
[1742720951998,0.00745564,2013.7,2013.6,2.8052662]
[1742720952395,0.00745564,2013.7,2013.6,2.80541323]
[1742720952597,0.00745564,2013.7,2013.6,3.44042177]
[1742720954093,0.00745564,2013.7,2013.6,3.44057789]
[1742720955901,0.00745564,2013.7,2013.6,2.80556935]
[1742720958101,0.00745564,2013.7,2013.6,2.80586873]
[1742720958496,0.00745564,2013.7,2013.6,2.80581241]
[1742720958805,1.2937,2014.0,2013.9,0.99327]
[1742720959003,1.2937,2014.0,2013.9,4.20107]
[1742720959504,1.2937,2014.0,2013.9,5.50857]
[1742720959896,0.6955,2014.1,2014.0,0.99322]
[1742720960099,0.6955,2014.1,2014.0,2.30072]
[1742720961904,0.6955,2014.1,2014.0,5.46472]
[1742720962297,0.6955,2014.1,2014.0,5.98764802]
[1742720962706,0.00745564,2014.2,2014.1,0.99317]
[1742720962904,1.29035564,2014.2,2014.1,2.86349802]
[1742720963304,1.29035564,2014.2,2014.1,2.34057]
[1742720964003,1.29035564,2014.2,2014.1,3.55931946]
[1742720964606,1.29035564,2014.2,2014.1,3.55922373]
[1742720964810,0.00745564,2014.2,2014.1,3.55922373]
[1742720966304,0.00745564,2014.2,2014.1,4.22062373]
[1742720967403,0.00745564,2014.2,2014.1,3.55922373]
[1742720967604,0.63695564,2014.2,2014.1,3.55922373]
[1742720968000,0.63695564,2014.2,2014.1,3.55894136]
[1742720970006,0.00745564,2014.2,2014.1,3.03657]
[1742720970207,0.00745564,2014.2,2014.1,3.55887013]
[1742720970514,0.00745564,2014.2,2014.1,3.03657]
[1742720971218,0.00745564,2014.2,2014.1,3.55877386]
[1742720971403,0.00745564,2014.2,2014.1,4.23617386]
[1742720972214,0.00745564,2014.2,2014.1,4.2362182]
[1742720974107,0.00745564,2014.2,2014.1,4.23626419]
[1742720974717,0.00745564,2014.2,2014.1,3.55886419]
[1742720975316,1.29725564,2014.2,2014.1,3.55886419]
[1742720976120,1.29725564,2014.2,2014.1,3.5589243]
[1742720976620,1.29725564,2014.2,2014.1,3.55895476]
[1742720978119,1.29725564,2014.2,2014.1,3.55900947]
[1742720978518,1.29725564,2014.2,2014.1,2.86300947]
[1742720980018,1.29725564,2014.2,2014.1,6.02600947]
[1742720980217,1.29725564,2014.2,2014.1,6.02619892]
[1742720981921,1.29725564,2014.2,2014.1,6.66116185]
[1742720982320,1.29725564,2014.2,2014.1,9.86896185]
[1742720984820,1.29725564,2014.2,2014.1,9.23442305]
[1742720985023,0.00745564,2014.2,2014.1,9.23442305]
[1742720986421,0.00745564,2014.2,2014.1,9.86980967]
[1742720987223,1.3601,2014.3,2014.2,0.99312]
[1742720987424,1.3601,2014.3,2014.2,2.77407305]
[1742720987723,0.6313,2014.4,2014.3,0.99307]
[1742720987923,0.6313,2014.4,2014.3,5.93602305]
[1742720988427,0.6313,2014.4,2014.3,5.9364245]
[1742720990217,0.6313,2014.4,2014.3,46.7364245]
[1742720990823,0.6313,2014.4,2014.3,46.73647561]
[1742720991327,0.6313,2014.4,2014.3,49.94427561]
[1742720992431,0.6313,2014.4,2014.3,49.94432522]
[1742720992823,0.6313,2014.4,2014.3,50.58013363]
[1742720994323,0.6313,2014.4,2014.3,50.5802177]
[1742720996131,1.2799,2014.4,2014.3,50.5802177]
[1742720996430,1.2799,2014.4,2014.3,50.58023287]
[1742720996833,1.2799,2014.4,2014.3,50.58023299]
[1742721001835,1.2799,2014.4,2014.3,50.05657841]
[1742721002138,1.2799,2014.4,2014.3,50.58030888]
[1742721002330,1.2799,2014.4,2014.3,49.94452119]
[1742721002536,1.2799,2014.4,2014.3,50.58054079]
[1742721005937,1.2799,2014.4,2014.3,50.0567896]
[1742721006140,1.2799,2014.4,2014.3,50.58056922]
[1742721008032,1.2799,2014.4,2014.3,49.94454962]
[1742721008534,1.2799,2014.4,2014.3,49.94455269]
[1742721008934,1.2799,2014.4,2014.3,50.62335269]
[1742721010135,1.2799,2014.4,2014.3,50.62336237]
[1742721012042,1.2799,2014.4,2014.3,50.62339902]
[1742721014044,1.2799,2014.4,2014.3,49.94459902]
[1742721014747,1.2799,2014.4,2014.3,49.94467787]
[1742721015548,1.2799,2014.4,2014.3,50.58096941]
[1742721016248,1.2799,2014.4,2014.3,50.58101497]
[1742721017339,0.00745564,2014.6,2014.5,0.99298]
[1742721017649,0.00745564,2014.6,2014.5,1.51693343]
[1742721017848,1.97915564,2014.6,2014.5,2.80953343]
[1742721018348,1.97915564,2014.6,2014.5,3.44592909]
[1742721020152,1.97915564,2014.6,2014.5,2.80953343]
[1742721022144,1.97915564,2014.6,2014.5,2.28558]
[1742721022353,1.97915564,2014.6,2014.5,2.80952798]
[1742721022746,1.97915564,2014.6,2014.5,2.80951718]
[1742721023251,1.97915564,2014.6,2014.5,6.01731718]
[1742721024246,1.97915564,2014.6,2014.5,5.49338]
[1742721024447,1.97915564,2014.6,2014.5,6.01730529]
[1742721026356,1.97915564,2014.6,2014.5,6.01730435]
[1742721028359,1.97915564,2014.6,2014.5,6.01731524]
[1742721029051,2.97208564,2014.6,2014.5,3.73173524]
[1742721029351,5.14015564,2014.6,2014.5,4.20078]
[1742721029548,6.13308564,2014.6,2014.5,3.2078]
[1742721029748,5.14015564,2014.6,2014.5,4.20078]
[1742721030154,6.13308564,2014.6,2014.5,4.20078]
[1742721030353,1.97915564,2014.6,2014.5,4.20078]
[1742721033157,1.97915564,2014.6,2014.5,4.72459528]
[1742721037172,1.97915564,2014.6,2014.5,4.72462421]
[1742721037360,1.97915564,2014.6,2014.5,4.20078]
[1742721037762,1.97915564,2014.6,2014.5,4.72463218]
[1742721038558,1.97915564,2014.6,2014.5,4.20078]
[1742721038758,1.97915564,2014.6,2014.5,4.72462721]
[1742721039566,2.97208564,2014.6,2014.5,3.73164721]
[1742721040371,2.97208564,2014.6,2014.5,3.73163968]
[1742721041170,2.97208564,2014.6,2014.5,4.72461968]
[1742721043074,1.97915564,2014.6,2014.5,4.72461968]
[1742721043878,2.97208564,2014.6,2014.5,4.72461968]
[1742721044879,2.97208564,2014.6,2014.5,4.20078]
[1742721047871,2.97208564,2014.6,2014.5,3.2078]
[1742721048272,2.97208564,2014.6,2014.5,4.4943]
[1742721049481,0.99301,2014.5,2014.4,0.99302]
[1742721049666,2.37851,2014.5,2014.4,2.25462]
[1742721052280,2.37851,2014.5,2014.4,1.2616]
[1742721052885,2.37851,2014.5,2014.4,1.78525556]
[1742721054085,2.37851,2014.5,2014.3,41.80049564]
[1742721054086,0.99303,2014.4,2014.3,0.00745564]
[1742721054380,6.76913,2014.4,2014.3,0.00745564]
[1742721054581,13.27909073,2014.4,2014.3,0.00745564]
[1742721054972,0.99312,2014.2,2014.1,40.8]
[1742721055174,4.15312,2014.2,2014.1,40.8]
[1742721055780,0.99327,2013.9,2013.8,0.99329]
[1742721055981,0.99327,2013.9,2013.8,1.51649774]
[1742721056180,0.99327,2013.9,2013.8,42.31649774]
[1742721057186,2.37337,2013.9,2013.8,43.65869774]
[1742721057489,2.37337,2013.9,2013.8,43.65831936]
[1742721058286,2.0526,2013.9,2013.8,43.65831936]
[1742721058587,3.04587,2013.9,2013.8,42.66502936]
[1742721058789,3.04587,2013.9,2013.8,42.1422]
[1742721059690,3.04587,2013.9,2013.8,1.3422]
[1742721063893,0.99332,2013.8,2013.7,40.8]
[1742721064085,0.99332,2013.8,2013.7,42.1712]
[1742721064086,6.19192,2013.8,2013.7,42.1712]
[1742721065587,11.89972,2013.8,2013.7,40.8]
[1742721066094,0.99337,2013.7,2013.6,0.00745564]
[1742721066293,2.34257,2013.7,2013.6,0.00745564]
[1742721066497,2.34257,2013.7,2013.6,40.80745564]
[1742721068790,3.161,2013.7,2013.6,41.80087564]
[1742721069096,3.161,2013.7,2013.6,42.48597564]
[1742721069595,4.15437,2013.7,2013.6,42.48597564]
[1742721074198,4.15437,2013.7,2013.6,1.68597564]
[1742721075102,4.15437,2013.7,2013.6,3.00497564]
[1742721075900,3.161,2013.7,2013.6,2.01155564]
[1742721076095,4.15437,2013.7,2013.6,3.00497564]
[1742721082405,4.15437,2013.7,2013.6,2.01155564]
[1742721082802,4.15437,2013.7,2013.6,1.32645564]
[1742721083102,4.79287,2013.7,2013.6,1.32645564]
[1742721088698,6.15827,2013.7,2013.6,1.32645564]
[1742721090008,6.15827,2013.7,2013.6,0.00745564]
[1742721091711,9.36607,2013.7,2013.6,0.00745564]
[1742721107417,0.99342,2013.6,2013.5,1.2756]
[1742721107626,2.91952,2013.6,2013.5,1.2756]
[1742721107822,0.99357,2013.3,2013.2,3.2078]
[1742721108024,4.15457,2013.3,2013.2,4.5442]
[1742721108224,4.15457,2013.3,2013.2,45.3442]
[1742721108625,4.81657,2013.3,2013.2,45.86780794]
[1742721109230,4.81657,2013.3,2013.2,45.3442]
[1742721109430,5.49747,2013.3,2013.2,45.3442]
[1742721109731,5.49747,2013.3,2013.2,1.3364]
[1742721111129,6.81147,2013.3,2013.2,1.3364]
[1742721116741,4.81657,2013.3,2013.2,1.3364]
[1742721117441,6.11597,2013.3,2013.2,1.3364]
[1742721125747,6.11597,2013.3,2013.2,42.1364]
[1742721132752,6.11597,2013.3,2013.2,43.13002]
[1742721132950,6.11597,2013.3,2013.2,42.1364]
[1742721133548,6.11597,2013.3,2013.2,43.13002]
[1742721139350,6.11597,2013.3,2013.2,43.65417099]
[1742721140547,6.11597,2013.3,2013.2,43.65417343]
[1742721140845,6.11597,2013.3,2013.2,1.3364]
[1742721151766,6.11597,2013.3,2013.2,2.85412096]
[1742721152466,6.11597,2013.3,2013.2,1.86050096]
[1742721155255,6.11597,2013.3,2013.2,1.86044295]
[1742721155760,6.11597,2013.3,2013.2,1.86040678]
[1742721156267,6.11597,2013.3,2013.2,1.3364]
[1742721158963,6.11597,2013.3,2013.2,1.86041234]
[1742721159464,6.11597,2013.3,2013.2,1.3364]
[1742721160466,6.11597,2013.3,2013.2,1.8604084]
[1742721161275,6.11597,2013.3,2013.2,2.8540284]
[1742721161563,6.11597,2013.3,2013.2,2.33002]
[1742721161770,6.11597,2013.3,2013.2,1.86040016]
[1742721162070,6.11597,2013.3,2013.2,1.86039888]
[1742721162769,6.11597,2013.3,2013.2,1.3364]
[1742721163361,6.11597,2013.3,2013.2,2.33002]
[1742721168166,6.11597,2013.3,2013.2,1.3364]
[1742721176178,0.99367,2013.1,2013.0,0.00745564]
[1742721176477,4.15367,2013.1,2013.0,0.53117486]
[1742721176676,4.15367,2013.1,2013.0,0.53119178]
[1742721176878,5.54867,2013.1,2013.0,0.53119178]
[1742721177179,5.54867,2013.1,2013.0,1.52491178]
[1742721177770,5.54867,2013.1,2013.0,0.53119178]
[1742721179280,5.54867,2013.1,2013.0,1.85409178]
[1742721180675,5.54867,2013.1,2013.0,1.85394251]
[1742721182184,5.54867,2013.1,2013.0,1.85394356]
[1742721182682,5.54867,2013.1,2013.0,1.85393979]
[1742721182877,5.54867,2013.1,2013.0,1.85394293]
[1742721186678,5.54867,2013.1,2013.0,1.85431817]
[1742721188686,5.54867,2013.1,2013.0,1.85436283]
[1742721189186,5.54867,2013.1,2013.0,1.85436328]
[1742721190685,5.54867,2013.1,2013.0,1.33035564]
[1742721190882,5.54867,2013.1,2013.0,1.85431215]
[1742721191588,5.54867,2013.1,2013.0,2.84803215]
[1742721191773,5.54867,2013.1,2013.0,1.85431215]
[1742721192382,5.54867,2013.1,2013.0,2.84803215]
[1742721194289,5.54867,2013.1,2013.0,1.85431215]
[1742721194891,5.54867,2013.1,2013.0,2.84803215]
[1742721195189,5.54867,2013.1,2013.0,2.84787878]
[1742721195590,5.54867,2013.1,2013.0,2.32407564]
[1742721195886,5.54867,2013.1,2013.0,2.84787033]
[1742721197189,5.54867,2013.1,2013.0,2.84785362]
[1742721197391,5.54867,2013.1,2013.0,2.84780284]
[1742721199391,5.54867,2013.1,2013.0,1.85408284]
[1742721199593,5.54867,2013.1,2013.0,1.85403939]
[1742721201792,5.54867,2013.1,2013.0,1.85402667]
[1742721202196,5.54867,2013.1,2013.0,1.85402711]
[1742721203597,5.54867,2013.1,2013.0,1.85404256]
[1742721203899,5.54867,2013.1,2013.0,1.85403773]
[1742721206091,5.54867,2013.1,2013.0,1.8540161]
[1742721207403,5.54867,2013.1,2013.0,0.5311161]
[1742721208004,5.54867,2013.1,2013.0,0.53132513]
[1742721208202,5.54867,2013.1,2013.0,1.81022686]
[1742721208411,5.54867,2013.1,2013.0,0.53132686]
[1742721208810,5.54867,2013.1,2013.0,0.53128636]
[1742721209511,5.54867,2013.1,2013.0,0.00745564]
[1742721209711,5.54867,2013.1,2013.0,0.531242]
[1742721211105,5.54867,2013.1,2013.0,1.923842]
[1742721212710,5.54867,2013.1,2013.0,1.92368496]
[1742721214618,5.54867,2013.1,2013.0,0.53108496]
[1742721215114,5.54867,2013.1,2013.0,1.86732789]
[1742721215312,5.54867,2013.1,2013.0,1.34375564]
[1742721215512,5.54867,2013.1,2013.0,1.86731748]
[1742721216708,5.54867,2013.1,2013.0,1.86726825]